[Event "Baku Open 2024"]
[Site "Baku"]
[Date "2024.07.04"]
[Round "6.43"]
[White "Ghoreishi Amiri, Seyed Kian"]
[Black "Davudov, Tunar"]
[Result "0-1"]
[ECO "B24"]
[WhiteElo "2126"]
[BlackElo "2249"]
[Annotator "TA"]
[PlyCount "78"]
[EventDate "2024.06.29"]
[EventType "swiss"]
[EventCountry "AZE"]
[SourceTitle "playchess.com"]
[Source "ChessBase"]
[SourceQuality "1"]
[TimeControl "5400+30"]

{[%evp 18,78,22,0,3,0,15,-17,-8,-4,-12,-10,-10,0,0,-38,0,-7,32,41,105,85,133,141,136,112,140,131,145,127,104,102,114,-229,-239,-243,-241,-241,-241,-242,-232,-644,-493,-464,-253,-443,-292,-292,-292,-983,-929,-1150,-1086,-2127,-2178,-5410,-5293,-29989,-29990,-29990,-29991,-29991,-29992]} 1. e4 {[%emt 0:00:03]} c5 {[%emt 0:00:19]} 2. Nf3 {[%emt 0:00:05]} e6 {[%emt 0:00:12]} 3. g3 {[%emt 0:00:00]} Nc6 {[%emt 0:00:51]} 4. Bg2 {[%emt 0:00:16]} d5 {[%emt 0:00:14]} 5. exd5 {[%emt 0:00:30]} exd5 {[%emt 0:00:05]} 6. d4 {[%emt 0:00:08]} Nf6 {[%emt 0:00:22]} 7. O-O {[%emt 0:00:31]} Be7 {[%emt 0:00:06]} 8. Nc3 {[%emt 0:01:29]} O-O {[%emt 0:01:56]} 9. Bg5 {[%emt 0:06:46]} cxd4 {[%emt 0:04:19]} 10. Nxd4 {[%emt 0:00:57]} h6 {[%emt 0:07:03]} 11. Bf4 {[%emt 0:02:05]} Qb6 {[%emt 0:09:14]} 12. Nb3 {[%emt 0:09:03]} d4 {[%emt 0:07:28] The position is equal.} 13. Nd5 {[%emt 0:06:32]} Nxd5 {[%emt 0:03:14]} 14. Bxd5 {[%emt 0:00:43]} Bh3 {[%emt 0:03:09]} 15. Re1 {[%emt 0:02:33] Hoping for Qh5.} Bb4 {[%emt 0:02:31]} 16. Nd2 {[%emt 0:02:37]} Qa5 {[%emt 0:07:29]} 17. Be4 {[%emt 0:06:49]} Be6 {[%emt 0:12:59]} 18. a3 {[%emt 0:02:02]} Be7 {[%emt 0:00:51]} (18... Bxd2 $1 $14 19. Qxd2 (19. Bxd2 Qc7 $11) 19... Qxd2 20. Bxd2 Rfd8) 19. Nb3 Bxb3 {[%emt 0:12:33]} (19... Qd8 $142) 20. cxb3 $16 {[%emt 0:04:16] Bxc6 would now be deadly.} Bf6 {[%emt 0:05:04]} 21. b4 {[%emt 0:03:04]} Qb5 {[%emt 0:01:05]} 22. Rc1 {[%emt 0:04:19] And now Qg4 would win.} Rfe8 {[%emt 0:02:13]} 23. Rc5 {[%emt 0:03:38] Dodges Ne5} Qb6 {[%emt 0:00:02] Black is weak on the light squares} 24. Qh5 {[%emt 0:00:50] Threatens to win with Qf5.} Re6 {[%emt 0:06:27]} 25. b5 $2 {[%emt 0:04:20][%mdl 8192] This move loses the game for White.} (25. Rb5 $16 {and life is bright.} Qa6 26. Rd5) 25... g6 $1 $19 {[%emt 0:02:59]} 26. Qd5 {[%emt 0:02:39] [#]} Rd8 $1 {[%emt 0:00:51]} 27. Qc4 {[%emt 0:04:00] [#]} Na5 {[%emt 0:00:06]} 28. Qb4 {[%emt 0:01:22][%cal Of4c7] Strongly threatening Bc7!} Be7 {[%emt 0:00:55]} 29. Qa4 $2 {[%emt 0:02:15]} (29. Bc7 Bxc5 30. Qxa5 Qxa5 31. Bxa5) 29... Qxc5 {[%emt 0:02:29]} 30. Qxa5 {[%emt 0:00:08]} Qb6 {[%emt 0:01:51]} (30... d3 $142 31. Be3 Qc2) 31. Qd2 $2 {[%emt 0:00:31]} (31. Qxb6 axb6 (31... Rxb6 32. Bc7 $11) 32. Kf1) 31... Bg5 {[%emt 0:00:50]} ({But not} 31... Qxb5 32. h4 $19) 32. Bxg5 {[%emt 0:00:21]} hxg5 {[%emt 0:00:05]} 33. Qxg5 $2 {[%emt 0:00:31] [#]} (33. Bd3) 33... f5 $1 {[%emt 0:01:17][%mdl 512]} 34. h4 {[%emt 0:00:26]} (34. a4 fxe4) 34... Rxe4 {[%emt 0:00:26]} 35. Rxe4 {[%emt 0:00:05]} fxe4 {[%emt 0:00:04]} 36. h5 {[%emt 0:00:02]} d3 {[%emt 0:00:13] ( -> ...d2)} 37. h6 {[%emt 0:00:12]} d2 {[%emt 0:00:16] Black mates.} 38. h7+ {[%emt 0:00:49]} Kxh7 {[%emt 0:00:08]} 39. Qe7+ {[%emt 0:00:05]} Kg8 {[%emt 0:00:04] Weighted Error Value: White=1.21/Black=0.32.  Loses game:     	White=1     	---        Mistake:       	White=3     	Black=2      Inaccurate:     	White=2     	Black=3      OK:         	White=11    	Black=6      Best:        	White=1     	Black=2      Strong:       	---       	Black=2} 0-1

[Event "Baku Open 2024"]
[Site "Baku"]
[Date "2024.07.04"]
[Round "6.44"]
[White "Allahverdiyeva, Ayan"]
[Black "Rebecca Jesumarian"]
[Result "1-0"]
[ECO "B90"]
[WhiteElo "2133"]
[BlackElo "1866"]
[Annotator "NA RC"]
[PlyCount "91"]
[EventDate "2024.06.29"]
[EventType "swiss"]
[EventCountry "AZE"]
[SourceTitle "playchess.com"]
[Source "ChessBase"]
[SourceQuality "1"]
[TimeControl "5400+30"]

1. e4 {[%emt 0:00:25]} c5 {[%emt 0:00:09]} 2. Nf3 {[%emt 0:00:05]} d6 {[%emt 0:00:03]} 3. d4 {[%emt 0:00:04]} cxd4 {[%emt 0:00:03]} 4. Nxd4 {[%emt 0:00:03]} Nf6 {[%emt 0:00:05]} 5. Nc3 {[%emt 0:00:03]} a6 {[%emt 0:00:03]} 6. h3 {[%emt 0:00:27]} e5 {[%emt 0:00:28]} 7. Nb3 {[%emt 0:00:12]} Be7 {[%emt 0:00:19]} 8. g4 {[%emt 0:00:18]} h6 {[%emt 0:00:06]} 9. Be3 {[%emt 0:00:04]} Qc7 {[%emt 0:01:00]} 10. Qf3 {[%emt 0:05:59]} b5 {[%emt 0:02:33]} 11. Bd3 {[%emt 0:06:11]} Bb7 {[%emt 0:01:47]} 12. h4 {[%emt 0:01:32]} Nbd7 {[%emt 0:02:54]} 13. g5 {[%emt 0:00:23]} hxg5 {[%emt 0:00:22]} 14. hxg5 {[%emt 0:00:12]} Rxh1+ {[%emt 0:00:27]} 15. Qxh1 {[%emt 0:00:03]} Ng4 {[%emt 0:21:42]} 16. Bd2 {[%emt 0:02:01]} b4 {[%emt 0:01:41]} 17. Nd1 {[%emt 0:13:13]} d5 {[%emt 0:12:38]} 18. Be2 {[%emt 0:00:33]} dxe4 {[%emt 0:02:44]} 19. Bxg4 {[%emt 0:01:13]} Nf8 {[%emt 0:02:42]} 20. Ne3 {[%emt 0:01:27]} a5 {[%emt 0:04:45]} 21. Qh8 {[%emt 0:03:39]} g6 {[%emt 0:02:55]} 22. Be2 {[%emt 0:04:11]} Bc6 {[%emt 0:01:24]} 23. Nc4 {[%emt 0:01:00]} a4 {[%emt 0:01:47]} 24. Qxe5 {[%emt 0:02:03]} Qxe5 {[%emt 0:06:31]} 25. Nxe5 {[%emt 0:00:06]} Bd5 {[%emt 0:00:16]} 26. Nd4 {[%emt 0:00:13]} Bc5 {[%emt 0:00:39]} 27. Ndc6 {[%emt 0:01:28]} a3 {[%emt 0:03:58]} 28. b3 {[%emt 0:01:16]} Ne6 {[%emt 0:02:23]} 29. Nxb4 {[%emt 0:02:58]} Bb7 {[%emt 0:01:41]} 30. Bb5+ {[%emt 0:02:06]} Ke7 {[%emt 0:00:21]} 31. Nbc6+ {[%emt 0:00:21]} Kd6 {[%emt 0:00:27]} 32. Rd1 {[%emt 0:00:39]} Bxc6 {[%emt 0:01:23]} 33. Nxc6 {[%emt 0:00:31]} Kc7 {[%emt 0:00:47]} 34. b4 {[%emt 0:01:48]} Bd6 {[%emt 0:00:38]} 35. Be3 {[%emt 0:00:53]} Rh8 {[%emt 0:00:38]} 36. c3 {[%emt 0:00:53]} Rh5 {[%emt 0:00:37]} 37. Nd4 {[%emt 0:01:40]} Nf4 {[%emt 0:01:49]} 38. Bf1 {[%emt 0:01:13]} Be5 {[%emt 0:00:31]} 39. Bxf4 {[%emt 0:01:01]} Bxf4 {[%emt 0:00:05]} 40. Nb5+ {[%emt 0:00:02]} Kb6 {[%emt 0:00:13]} 41. Nxa3 {[%emt 0:00:20]} Bxg5 {[%emt 0:00:20]} 42. Rd7 {[%emt 0:00:19]} Bh4 {[%emt 0:01:46]} 43. Rxf7 {[%emt 0:00:25]} e3 {[%emt 0:00:05]} 44. Nc4+ {[%emt 0:00:06]} Kc6 {[%emt 0:00:13]} 45. Bg2+ {[%emt 0:00:12]} Kb5 {[%emt 0:00:55]} 46. Nxe3 {[%emt 0:01:12]} 1-0